[Event "Allsvenskan 24-25"]
[Site "Linköping, Sweden"]
[Date "2025.02.02"]
[Round "7.1"]
[White "Palmblad, Jan Peter"]
[Black "Nyberg, Peter"]
[Result "1-0"]
[TimeControl "90 min/40 moves + 30 min + 30 sec from move 1"]
[WhiteElo "1944"]
[BlackElo "1972"]

1. e4 {[%clk 01:30:54]} {[%emt 00:00:06]} c6 {[%clk 01:30:46]} {[%emt
00:00:15]} 2. Nf3 {[%clk 01:31:02]} {[%emt 00:00:21]} d5 {[%clk 01:31:03]}
{[%emt 00:00:13]} 3. exd5 {[%clk 01:31:25]} {[%emt 00:00:07]} cxd5 {[%clk
01:31:30]} {[%emt 00:00:04]} 4. Ne5 {[%clk 01:31:45]} {[%emt 00:00:10]} Nc6
{[%clk 01:29:55]} {[%emt 00:02:05]} 5. d4 {[%clk 01:32:07]} {[%emt 00:00:07]}
g6 {[%clk 01:20:49]} {[%emt 00:09:36]} 6. c3 {[%clk 01:27:38]} {[%emt
00:04:59]} Bg7 {[%clk 01:10:55]} {[%emt 00:10:25]} 7. Bf4 {[%clk 01:22:24]}
{[%emt 00:05:43]} f6 {[%clk 01:04:37]} {[%emt 00:06:48]} 8. Nxc6 {[%clk
01:16:54]} {[%emt 00:05:59]} bxc6 {[%clk 01:04:34]} {[%emt 00:00:34]} 9. Bd3
{[%clk 00:54:41]} {[%emt 00:22:42]} e5 {[%clk 00:49:30]} {[%emt 00:15:35]} 10.
dxe5 {[%clk 00:54:48]} {[%emt 00:00:23]} fxe5 {[%clk 00:49:52]} {[%emt
00:00:08]} 11. Bg3 {[%clk 00:50:49]} {[%emt 00:04:28]} e4 {[%clk 00:34:42]}
{[%emt 00:15:41]} 12. Be2 {[%clk 00:51:02]} {[%emt 00:00:17]} Nf6 {[%clk
00:32:10]} {[%emt 00:03:03]} 13. O-O {[%clk 00:51:13]} {[%emt 00:00:18]} O-O
{[%clk 00:32:29]} {[%emt 00:00:12]} 14. Na3 {[%clk 00:41:05]} {[%emt 00:10:38]}
Be6 {[%clk 00:19:18]} {[%emt 00:13:41]} 15. Nc2 {[%clk 00:39:03]} {[%emt
00:02:32]} Qb6 {[%clk 00:16:56]} {[%emt 00:02:52]} 16. b4 {[%clk 00:36:43]}
{[%emt 00:02:50]} c5 {[%clk 00:08:06]} {[%emt 00:09:20]} 17. bxc5 {[%clk
00:25:04]} {[%emt 00:12:09]} Qxc5 {[%clk 00:08:33]} {[%emt 00:00:03]} 18. Be5
{[%clk 00:25:20]} {[%emt 00:00:13]} Nd7 {[%clk 00:04:58]} {[%emt 00:04:06]} 19.
Bxg7 {[%clk 00:24:45]} {[%emt 00:01:05]} Kxg7 {[%clk 00:05:27]} {[%emt
00:00:01]} 20. Nd4 {[%clk 00:23:51]} {[%emt 00:01:23]} Bf7 {[%clk 00:03:37]}
{[%emt 00:02:19]} 21. Qd2 {[%clk 00:17:00]} {[%emt 00:07:21]} Ne5 {[%clk
00:02:48]} {[%emt 00:01:20]} 22. Qg5 {[%clk 00:16:28]} {[%emt 00:01:02]} Rae8
{[%clk 00:02:36]} {[%emt 00:00:42]} 23. Bb5 {[%clk 00:13:25]} {[%emt 00:03:33]}
Qxc3 {[%clk 00:01:42]} {[%emt 00:01:24]} 24. Nf5+ {[%clk 00:13:31]} {[%emt
00:00:23]} Kg8 {[%clk 00:01:48]} {[%emt 00:00:23]} 25. Rac1 {[%clk 00:13:49]}
{[%emt 00:00:13]} Qb2 {[%clk 00:01:09]} {[%emt 00:01:09]} 26. Rb1 {[%clk
00:12:58]} {[%emt 00:01:21]} Qc3 {[%clk 00:00:49]} {[%emt 00:00:51]} 27. Rfc1
{[%clk 00:09:33]} {[%emt 00:03:55]} Qa5 {[%clk 00:00:41]} {[%emt 00:00:38]} 28.
Bxe8 {[%clk 00:09:34]} {[%emt 00:00:28]} Rxe8 {[%clk 00:01:11]} {[%emt
00:00:01]} 29. Ne7+ {[%clk 00:09:48]} {[%emt 00:00:16]} Kf8 {[%clk 00:00:48]}
{[%emt 00:00:53]} 30. Rb7 {[%clk 00:07:47]} {[%emt 00:02:31]} Nd3 {[%clk
00:00:33]} {[%emt 00:00:45]} 31. Qh6# {[%clk 00:08:09]} {[%emt 00:00:07]} 1-0

[Event "Allsvenskan 24-25"]
[Site "Linköping, Sweden"]
[Date "2025.02.02"]
[Round "7.2"]
[White "Thyberg, Andre"]
[Black "Unander, Matts"]
[Result "1-0"]
[TimeControl "90 min/40 moves + 30 min + 30 sec from move 1"]
[WhiteElo "1973"]
[BlackElo "1949"]

1. e4 {[%clk 01:30:52]} {[%emt 00:00:06]} c5 {[%clk 01:30:39]} {[%emt
00:00:22]} 2. d4 {[%clk 01:30:53]} {[%emt 00:00:29]} cxd4 {[%clk 01:30:49]}
{[%emt 00:00:20]} 3. c3 {[%clk 01:31:14]} {[%emt 00:00:09]} d5 {[%clk
01:29:37]} {[%emt 00:01:42]} 4. exd5 {[%clk 01:31:16]} {[%emt 00:00:29]} Qxd5
{[%clk 01:29:41]} {[%emt 00:00:25]} 5. cxd4 {[%clk 01:31:02]} {[%emt 00:00:44]}
Nc6 {[%clk 01:27:53]} {[%emt 00:02:18]} 6. Nf3 {[%clk 01:31:15]} {[%emt
00:00:16]} e6 {[%clk 01:26:09]} {[%emt 00:02:15]} 7. Nc3 {[%clk 01:31:36]}
{[%emt 00:00:09]} Qd8 {[%clk 01:25:03]} {[%emt 00:01:36]} 8. Bc4 {[%clk
01:24:36]} {[%emt 00:07:30]} Nf6 {[%clk 01:22:23]} {[%emt 00:03:10]} 9. O-O
{[%clk 01:23:09]} {[%emt 00:01:57]} Be7 {[%clk 01:20:33]} {[%emt 00:02:20]} 10.
a3 {[%clk 01:20:49]} {[%emt 00:02:50]} O-O {[%clk 01:15:26]} {[%emt 00:05:37]}
11. Be3 {[%clk 01:17:30]} {[%emt 00:03:48]} a6 {[%clk 01:09:13]} {[%emt
00:06:43]} 12. Ba2 {[%clk 01:14:11]} {[%emt 00:03:49]} b5 {[%clk 01:02:47]}
{[%emt 00:06:56]} 13. b4 {[%clk 01:12:49]} {[%emt 00:01:53]} Bb7 {[%clk
00:57:51]} {[%emt 00:05:25]} 14. Qd2 {[%clk 01:07:23]} {[%emt 00:05:56]} Qd7
{[%clk 00:54:16]} {[%emt 00:04:05]} 15. Rfd1 {[%clk 01:04:00]} {[%emt
00:03:53]} Rad8 {[%clk 00:52:01]} {[%emt 00:02:46]} 16. h3 {[%clk 01:01:57]}
{[%emt 00:02:33]} Qc8 {[%clk 00:49:08]} {[%emt 00:03:21]} 17. Qc2 {[%clk
00:59:12]} {[%emt 00:03:15]} Qb8 {[%clk 00:44:42]} {[%emt 00:04:56]} 18. Bb1
{[%clk 00:49:26]} {[%emt 00:10:17]} g6 {[%clk 00:44:50]} {[%emt 00:00:22]} 19.
Ng5 {[%clk 00:44:58]} {[%emt 00:05:00]} Nh5 {[%clk 00:36:22]} {[%emt 00:08:57]}
20. Nge4 {[%clk 00:43:33]} {[%emt 00:01:55]} f5 {[%clk 00:34:05]} {[%emt
00:02:47]} 21. Ng5 {[%clk 00:39:09]} {[%emt 00:04:54]} Bxg5 {[%clk 00:31:47]}
{[%emt 00:02:47]} 22. Bxg5 {[%clk 00:39:38]} {[%emt 00:00:02]} Nxd4 {[%clk
00:29:02]} {[%emt 00:03:15]} 23. Qb2 {[%clk 00:37:29]} {[%emt 00:02:39]} Nf4
{[%clk 00:14:54]} {[%emt 00:14:37]} 24. Bxd8 {[%clk 00:36:43]} {[%emt
00:01:16]} Bxg2 {[%clk 00:11:39]} {[%emt 00:03:46]} 25. Rxd4 {[%clk 00:35:06]}
{[%emt 00:02:06]} Rxd8 {[%clk 00:09:29]} {[%emt 00:02:39]} 26. Qd2 {[%clk
00:34:00]} {[%emt 00:01:36]} Rxd4 {[%clk 00:07:23]} {[%emt 00:02:36]} 27. Qxd4
{[%clk 00:34:18]} {[%emt 00:00:12]} Ba8 {[%clk 00:06:13]} {[%emt 00:01:40]} 28.
Qe3 {[%clk 00:31:46]} {[%emt 00:03:01]} Qc7 {[%clk 00:04:16]} {[%emt 00:02:27]}
29. Ba2 {[%clk 00:26:20]} {[%emt 00:05:55]} Qxc3 {[%clk 00:04:03]} {[%emt
00:00:44]} 30. Qxc3 {[%clk 00:26:45]} {[%emt 00:00:06]} Ne2+ {[%clk 00:04:14]}
{[%emt 00:00:18]} 31. Kf1 {[%clk 00:27:09]} {[%emt 00:00:06]} Nxc3 {[%clk
00:04:37]} {[%emt 00:00:07]} 32. Bxe6+ {[%clk 00:27:33]} {[%emt 00:00:06]} Kg7
{[%clk 00:04:52]} {[%emt 00:00:15]} 33. Rc1 {[%clk 00:27:50]} {[%emt 00:00:12]}
Na4 {[%clk 00:02:54]} {[%emt 00:02:29]} 34. Bc8 {[%clk 00:28:04]} {[%emt
00:00:16]} Bd5 {[%clk 00:02:53]} {[%emt 00:00:30]} 35. Rc7+ {[%clk 00:27:54]}
{[%emt 00:00:40]} Kf6 {[%clk 00:02:35]} {[%emt 00:00:49]} 36. Rxh7 {[%clk
00:26:55]} {[%emt 00:01:29]} Nc3 {[%clk 00:01:49]} {[%emt 00:01:16]} 37. Bxa6
{[%clk 00:26:14]} {[%emt 00:01:11]} Bc4+ {[%clk 00:02:06]} {[%emt 00:00:13]} 38.
Ke1 {[%clk 00:26:28]} {[%emt 00:00:15]} Nb1 {[%clk 00:02:15]} {[%emt 00:00:22]}
39. a4 {[%clk 00:26:33]} {[%emt 00:00:25]} 1-0

[Event "Allsvenskan 24-25"]
[Site "Linköping, Sweden"]
[Date "2025.02.02"]
[Round "7.3"]
[White "Lundberg, Daniel 1971"]
[Black "Lindstrom, Andreas"]
[Result "0-1"]
[TimeControl "90 min/40 moves + 30 min + 30 sec from move 1"]
[WhiteElo "1818"]
[BlackElo "1953"]

1. Nf3 {[%clk 01:30:51]} {[%emt 00:00:08]} c5 {[%clk 01:29:18]} {[%emt
00:01:43]} 2. g3 {[%clk 01:31:15]} {[%emt 00:00:07]} g6 {[%clk 01:27:37]}
{[%emt 00:02:10]} 3. c4 {[%clk 01:29:12]} {[%emt 00:02:33]} Bg7 {[%clk
01:27:16]} {[%emt 00:00:50]} 4. Nc3 {[%clk 01:29:31]} {[%emt 00:00:12]} e6
{[%clk 01:24:43]} {[%emt 00:03:03]} 5. Bg2 {[%clk 01:27:01]} {[%emt 00:03:00]}
Ne7 {[%clk 01:23:33]} {[%emt 00:01:39]} 6. O-O {[%clk 01:25:41]} {[%emt
00:01:51]} Nbc6 {[%clk 01:22:33]} {[%emt 00:01:30]} 7. d3 {[%clk 01:18:19]}
{[%emt 00:07:52]} d5 {[%clk 01:19:24]} {[%emt 00:03:39]} 8. cxd5 {[%clk
01:14:22]} {[%emt 00:04:27]} exd5 {[%clk 01:13:41]} {[%emt 00:06:13]} 9. Bf4
{[%clk 01:05:17]} {[%emt 00:09:35]} O-O {[%clk 01:02:22]} {[%emt 00:11:49]} 10.
Qd2 {[%clk 00:52:30]} {[%emt 00:13:17]} Be6 {[%clk 00:59:40]} {[%emt 00:03:12]}
11. Bh6 {[%clk 00:48:45]} {[%emt 00:04:15]} Nf5 {[%clk 00:54:49]} {[%emt
00:05:21]} 12. Bxg7 {[%clk 00:48:53]} {[%emt 00:00:22]} Kxg7 {[%clk 00:55:05]}
{[%emt 00:00:14]} 13. Rfd1 {[%clk 00:31:09]} {[%emt 00:18:14]} Qd7 {[%clk
00:36:54]} {[%emt 00:18:41]} 14. Qf4 {[%clk 00:21:33]} {[%emt 00:10:06]} Nfd4
{[%clk 00:28:08]} {[%emt 00:09:16]} 15. e3 {[%clk 00:19:27]} {[%emt 00:02:36]}
Nxf3+ {[%clk 00:27:20]} {[%emt 00:01:17]} 16. Bxf3 {[%clk 00:17:44]} {[%emt
00:02:13]} f6 {[%clk 00:27:36]} {[%emt 00:00:14]} 17. e4 {[%clk 00:14:54]}
{[%emt 00:03:20]} g5 {[%clk 00:25:25]} {[%emt 00:02:41]} 18. Qd2 {[%clk
00:13:20]} {[%emt 00:02:04]} d4 {[%clk 00:25:42]} {[%emt 00:00:13]} 19. Nb1
{[%clk 00:06:20]} {[%emt 00:07:30]} Ne5 {[%clk 00:25:55]} {[%emt 00:00:17]} 20.
Be2 {[%clk 00:06:14]} {[%emt 00:00:37]} Bg4 {[%clk 00:25:30]} {[%emt 00:00:54]}
21. f3 {[%clk 00:05:09]} {[%emt 00:01:35]} Bxf3 {[%clk 00:23:57]} {[%emt
00:02:02]} 22. Rf1 {[%clk 00:05:27]} {[%emt 00:00:12]} Qg4 {[%clk 00:22:38]}
{[%emt 00:01:49]} 23. Bd1 {[%clk 00:04:30]} {[%emt 00:01:28]} h5 {[%clk
00:20:15]} {[%emt 00:02:54]} 24. Na3 {[%clk 00:04:44]} {[%emt 00:00:15]} h4
{[%clk 00:17:48]} {[%emt 00:02:57]} 25. Qf2 {[%clk 00:04:32]} {[%emt 00:00:43]}
hxg3 {[%clk 00:17:51]} {[%emt 00:00:28]} 26. hxg3 {[%clk 00:04:55]} {[%emt
00:00:07]} Bxd1 {[%clk 00:07:55]} {[%emt 00:10:25]} 27. Raxd1 {[%clk 00:05:19]}
{[%emt 00:00:06]} Rf7 {[%clk 00:07:35]} {[%emt 00:00:50]} 28. Nb5 {[%clk
00:05:10]} {[%emt 00:00:39]} Rd8 {[%clk 00:04:31]} {[%emt 00:03:34]} 29. Rd2
{[%clk 00:04:13]} {[%emt 00:01:27]} a6 {[%clk 00:04:51]} {[%emt 00:00:10]} 30.
Na3 {[%clk 00:04:39]} {[%emt 00:00:04]} Rh8 {[%clk 00:04:03]} {[%emt 00:01:18]}
31. Qf5 {[%clk 00:03:55]} {[%emt 00:01:14]} Qxg3+ {[%clk 00:02:17]} {[%emt
00:02:17]} 32. Rg2 {[%clk 00:04:19]} {[%emt 00:00:06]} Qh4 {[%clk 00:02:36]}
{[%emt 00:00:10]} 33. Rf4 {[%clk 00:01:44]} {[%emt 00:03:05]} Qh1+ {[%clk
00:02:31]} {[%emt 00:00:35]} 34. Kf2 {[%clk 00:02:13]} {[%emt 00:00:02]} Nxd3+
{[%clk 00:02:48]} {[%emt 00:00:13]} 35. Kf3 {[%clk 00:02:26]} {[%emt 00:00:16]}
Rh3+ {[%clk 00:02:00]} {[%emt 00:01:19]} 0-1

[Event "Allsvenskan 24-25"]
[Site "Linköping, Sweden"]
[Date "2025.02.02"]
[Round "7.4"]
[White "Stahlberg, Adam"]
[Black "Carlsson, Tomas"]
[Result "1-0"]
[TimeControl "90 min/40 moves + 30 min + 30 sec from move 1"]
[WhiteElo "1943"]
[BlackElo "1781"]

1. d4 {[%clk 01:30:56]} {[%emt 00:00:02]} e6 {[%clk 01:30:54]} {[%emt
00:00:06]} 2. c4 {[%clk 01:31:19]} {[%emt 00:00:08]} f5 {[%clk 01:31:19]}
{[%emt 00:00:05]} 3. g4 {[%clk 01:31:12]} {[%emt 00:00:37]} fxg4 {[%clk
01:30:10]} {[%emt 00:01:38]} 4. h3 {[%clk 01:31:29]} {[%emt 00:00:13]} Nf6
{[%clk 01:26:00]} {[%emt 00:04:40]} 5. hxg4 {[%clk 01:31:03]} {[%emt 00:00:56]}
d5 {[%clk 01:16:03]} {[%emt 00:10:27]} 6. Bg2 {[%clk 01:25:14]} {[%emt
00:06:18]} Nxg4 {[%clk 01:09:17]} {[%emt 00:07:17]} 7. e4 {[%clk 01:23:40]}
{[%emt 00:02:04]} e5 {[%clk 01:08:20]} {[%emt 00:01:26]} 8. f3 {[%clk
01:10:15]} {[%emt 00:13:56]} Bb4+ {[%clk 01:06:53]} {[%emt 00:01:58]} 9. Nc3
{[%clk 01:09:43]} {[%emt 00:01:02]} exd4 {[%clk 00:55:25]} {[%emt 00:11:58]} 10.
Qxd4 {[%clk 01:06:42]} {[%emt 00:03:32]} Qf6 {[%clk 00:49:23]} {[%emt
00:06:33]} 11. Qxf6 {[%clk 01:05:39]} {[%emt 00:01:32]} Nxf6 {[%clk 00:49:42]}
{[%emt 00:00:11]} 12. cxd5 {[%clk 01:05:55]} {[%emt 00:00:15]} c6 {[%clk
00:49:33]} {[%emt 00:00:39]} 13. dxc6 {[%clk 01:06:08]} {[%emt 00:00:17]} Nxc6
{[%clk 00:49:35]} {[%emt 00:00:28]} 14. Nge2 {[%clk 01:05:43]} {[%emt
00:00:54]} O-O {[%clk 00:47:41]} {[%emt 00:02:24]} 15. Be3 {[%clk 01:03:58]}
{[%emt 00:02:14]} Ne5 {[%clk 00:45:50]} {[%emt 00:02:22]} 16. O-O-O {[%clk
01:00:20]} {[%emt 00:04:07]} Nc4 {[%clk 00:43:52]} {[%emt 00:02:26]} 17. Bg5
{[%clk 00:53:55]} {[%emt 00:06:56]} h6 {[%clk 00:32:48]} {[%emt 00:11:35]} 18.
Bxf6 {[%clk 00:52:17]} {[%emt 00:02:07]} Rxf6 {[%clk 00:32:46]} {[%emt
00:00:33]} 19. Nd5 {[%clk 00:52:37]} {[%emt 00:00:10]} Rg6 {[%clk 00:30:40]}
{[%emt 00:02:37]} 20. Nef4 {[%clk 00:49:45]} {[%emt 00:03:21]} Rxg2 {[%clk
00:15:46]} {[%emt 00:15:24]} 21. Nxg2 {[%clk 00:49:45]} {[%emt 00:00:31]} Ba5
{[%clk 00:15:31]} {[%emt 00:00:45]} 22. Nge3 {[%clk 00:41:24]} {[%emt
00:08:51]} Nxe3 {[%clk 00:09:47]} {[%emt 00:06:14]} 23. Nxe3 {[%clk 00:41:46]}
{[%emt 00:00:08]} Be6 {[%clk 00:09:55]} {[%emt 00:00:23]} 24. Kb1 {[%clk
00:41:48]} {[%emt 00:00:27]} Rf8 {[%clk 00:07:36]} {[%emt 00:02:49]} 25. Rdf1
{[%clk 00:39:09]} {[%emt 00:03:09]} Bd7 {[%clk 00:07:03]} {[%emt 00:01:02]} 26.
Nc4 {[%clk 00:20:05]} {[%emt 00:19:35]} Bc7 {[%clk 00:04:22]} {[%emt 00:03:10]}
27. b3 {[%clk 00:17:50]} {[%emt 00:02:46]} a5 {[%clk 00:04:05]} {[%emt
00:00:48]} 28. a4 {[%clk 00:16:00]} {[%emt 00:02:20]} b5 {[%clk 00:03:10]}
{[%emt 00:01:25]} 29. axb5 {[%clk 00:15:53]} {[%emt 00:00:37]} Bxb5 {[%clk
00:03:29]} {[%emt 00:00:10]} 30. Rh5 {[%clk 00:15:16]} {[%emt 00:01:08]} Ba6
{[%clk 00:03:58]} {[%emt 00:00:01]} 31. Rc5 {[%clk 00:11:32]} {[%emt 00:04:14]}
Bd8 {[%clk 00:03:33]} {[%emt 00:00:54]} 32. Rd1 {[%clk 00:11:43]} {[%emt
00:00:20]} Be7 {[%clk 00:00:48]} {[%emt 00:03:15]} 33. Rxa5 {[%clk 00:07:16]}
{[%emt 00:04:58]} Bxc4 {[%clk 00:01:15]} {[%emt 00:00:03]} 34. bxc4 {[%clk
00:07:41]} {[%emt 00:00:05]} Rxf3 {[%clk 00:01:36]} {[%emt 00:00:09]} 35. c5
{[%clk 00:08:02]} {[%emt 00:00:09]} Rc3 {[%clk 00:01:36]} {[%emt 00:00:30]} 36.
Rc1 {[%clk 00:07:46]} {[%emt 00:00:46]} Re3 {[%clk 00:00:46]} {[%emt 00:01:19]}
37. c6 {[%clk 00:07:15]} {[%emt 00:01:02]} Bd6 {[%clk 00:01:15]} {[%emt
00:00:01]} 38. Rc4 {[%clk 00:04:47]} {[%emt 00:02:58]} Kh7 {[%clk 00:01:13]}
{[%emt 00:00:32]} 39. Rd5 {[%clk 00:04:51]} {[%emt 00:00:25]} Bc7 {[%clk
00:01:19]} {[%emt 00:00:24]} 40. Rd7 {[%clk 00:05:13]} {[%emt 00:00:09]} Bb6
{[%clk 00:00:47]} {[%emt 00:00:57]} 41. Rb4 {[%clk 00:04:55]} {[%emt 00:00:51]}
Ba5 {[%clk 00:00:37]} {[%emt 00:00:41]} 42. Rc4 {[%clk 00:04:20]} {[%emt
00:01:05]} Kg6 {[%clk 00:28:42]} {[%emt 00:02:23]} 43. c7 {[%clk 00:33:08]}
{[%emt 00:01:43]} Bxc7 {[%clk 00:28:43]} {[%emt 00:00:29]} 44. Rcxc7 {[%clk
00:33:15]} {[%emt 00:00:23]} Rxe4 {[%clk 00:28:47]} {[%emt 00:00:27]} 45. Rxg7+
{[%clk 00:33:37]} {[%emt 00:00:08]} Kh5 {[%clk 00:28:24]} {[%emt 00:00:51]} 46.
Rc6 {[%clk 00:33:29]} {[%emt 00:00:39]} Re8 {[%clk 00:26:07]} {[%emt 00:02:46]}
47. Kc2 {[%clk 00:33:10]} {[%emt 00:00:50]} Rh8 {[%clk 00:25:47]} {[%emt
00:00:49]} 48. Kd3 {[%clk 00:30:30]} {[%emt 00:03:12]} Kh4 {[%clk 00:26:06]}
{[%emt 00:00:11]} 49. Rc1 {[%clk 00:30:29]} {[%emt 00:00:31]} Rd8+ {[%clk
00:26:07]} {[%emt 00:00:30]} 50. Ke4 {[%clk 00:30:12]} {[%emt 00:00:46]} Re8+
{[%clk 00:26:35]} {[%emt 00:00:02]} 51. Kf4 {[%clk 00:29:51]} {[%emt 00:00:51]}
Rf8+ {[%clk 00:26:57]} {[%emt 00:00:08]} 52. Ke5 {[%clk 00:29:58]} {[%emt
00:00:23]} Re8+ {[%clk 00:26:42]} {[%emt 00:00:46]} 53. Kd6 {[%emt 00:01:25]}
1-0

[Event "Allsvenskan 24-25"]
[Site "Linköping, Sweden"]
[Date "2025.02.02"]
[Round "7.5"]
[White "Koffler, Alexander"]
[Black "Nordstrom, Per-Olov"]
[Result "0-1"]
[TimeControl "90 min/40 moves + 30 min + 30 sec from move 1"]
[WhiteElo "1755"]
[BlackElo "1936"]

1. e4 {[%clk 01:30:54]} {[%emt 00:00:04]} c5 {[%clk 01:30:47]} {[%emt
00:00:13]} 2. Nc3 {[%clk 01:31:08]} {[%emt 00:00:16]} Nc6 {[%clk 01:31:06]}
{[%emt 00:00:12]} 3. Nge2 {[%clk 01:31:11]} {[%emt 00:00:26]} Nf6 {[%clk
01:29:37]} {[%emt 00:01:59]} 4. g3 {[%clk 01:31:10]} {[%emt 00:00:31]} e5
{[%clk 01:28:22]} {[%emt 00:01:45]} 5. d3 {[%clk 01:31:05]} {[%emt 00:00:35]}
d6 {[%clk 01:27:44]} {[%emt 00:01:08]} 6. h3 {[%clk 01:31:05]} {[%emt
00:00:28]} g6 {[%clk 01:27:09]} {[%emt 00:01:06]} 7. Be3 {[%clk 01:30:46]}
{[%emt 00:00:49]} Bg7 {[%clk 01:25:40]} {[%emt 00:01:58]} 8. Qd2 {[%clk
01:28:01]} {[%emt 00:03:15]} Nd4 {[%clk 01:24:37]} {[%emt 00:01:31]} 9. Bg2
{[%clk 01:28:24]} {[%emt 00:00:08]} O-O {[%clk 01:24:08]} {[%emt 00:01:00]} 10.
O-O {[%clk 01:27:19]} {[%emt 00:01:35]} Bxh3 {[%clk 01:21:58]} {[%emt
00:02:39]} 11. Bg5 {[%clk 01:26:40]} {[%emt 00:01:09]} Bxg2 {[%clk 01:20:13]}
{[%emt 00:02:16]} 12. Kxg2 {[%clk 01:27:00]} {[%emt 00:00:09]} Qd7 {[%clk
01:14:51]} {[%emt 00:05:52]} 13. Nxd4 {[%clk 01:26:58]} {[%emt 00:00:33]} cxd4
{[%clk 01:14:46]} {[%emt 00:00:34]} 14. Ne2 {[%clk 01:25:56]} {[%emt 00:01:31]}
Nh5 {[%clk 01:04:16]} {[%emt 00:11:00]} 15. Bh6 {[%clk 01:23:06]} {[%emt
00:03:20]} f5 {[%clk 00:57:10]} {[%emt 00:07:35]} 16. Bxg7 {[%clk 01:22:04]}
{[%emt 00:01:33]} Kxg7 {[%clk 00:55:23]} {[%emt 00:02:18]} 17. f3 {[%clk
01:19:21]} {[%emt 00:03:14]} Rf7 {[%clk 00:50:09]} {[%emt 00:05:43]} 18. Rh1
{[%clk 01:18:43]} {[%emt 00:01:09]} Raf8 {[%clk 00:44:52]} {[%emt 00:05:45]} 19.
Raf1 {[%clk 01:16:35]} {[%emt 00:02:38]} d5 {[%clk 00:37:24]} {[%emt 00:07:58]}
20. c3 {[%clk 01:11:16]} {[%emt 00:05:51]} fxe4 {[%clk 00:33:01]} {[%emt
00:04:52]} 21. dxe4 {[%clk 01:11:17]} {[%emt 00:00:29]} dxe4 {[%clk 00:32:32]}
{[%emt 00:01:00]} 22. fxe4 {[%clk 01:11:23]} {[%emt 00:00:25]} Rxf1 {[%clk
00:29:36]} {[%emt 00:03:25]} 23. Rxf1 {[%clk 01:11:44]} {[%emt 00:00:09]} Rxf1
{[%clk 00:28:47]} {[%emt 00:01:19]} 24. Kxf1 {[%clk 01:12:12]} {[%emt
00:00:02]} Qh3+ {[%clk 00:23:11]} {[%emt 00:06:05]} 25. Kf2 {[%clk 01:11:47]}
{[%emt 00:00:55]} Qh2+ {[%clk 00:21:54]} {[%emt 00:01:47]} 26. Kf3 {[%clk
01:11:57]} {[%emt 00:00:21]} Nxg3 {[%clk 00:19:01]} {[%emt 00:03:23]} 27. Qg5
{[%clk 01:11:17]} {[%emt 00:01:10]} Nxe2 {[%clk 00:16:25]} {[%emt 00:03:06]} 28.
Qe7+ {[%clk 01:04:55]} {[%emt 00:06:52]} Kh6 {[%clk 00:16:27]} {[%emt
00:00:27]} 0-1